[Event "Titled Tuesday Blitz November 22 Late 2022"]
[White "Hardaway, Brewington"]
[Black "Papp, Levente"]
[WhiteFideId "30941849"]
[BlackFideId "751243"]
[WhiteElo "2783"]
[BlackElo "2599"]
[Result "0-1"]
[Round "06"]
[TimeControl "180+1"]
[Date "2022.11.23"]
[WhiteClock "0:00:10"]
[BlackClock "0:00:03"]

1. d4 {[%clk 0:02:54]}  e6 {[%clk 0:02:59]} 2. Nf3 {[%clk 0:02:54]}  Nf6 {[%clk 0:02:58]} 3. c4 {[%clk 0:02:55]}  c5 {[%clk 0:02:58]} 4. Nc3 {[%clk 0:02:55]}  cxd4 {[%clk 0:02:57]} 5. Nxd4 {[%clk 0:02:54]}  Nc6 {[%clk 0:02:57]} 6. g3 {[%clk 0:02:54]}  Bc5 {[%clk 0:02:54]} 7. Nb3 {[%clk 0:02:51]}  Bb4 {[%clk 0:02:49]} 8. Bg2 {[%clk 0:02:50]}  d5 {[%clk 0:02:45]} 9. cxd5 {[%clk 0:02:44]}  Nxd5 {[%clk 0:02:43]} 10. Bd2 {[%clk 0:02:43]}  Nxc3 {[%clk 0:02:35]} 11. bxc3 {[%clk 0:02:43]}  Be7 {[%clk 0:02:32]} 12. O-O {[%clk 0:02:43]}  O-O {[%clk 0:02:32]} 13. Qc2 {[%clk 0:02:44]}  e5 {[%clk 0:02:29]} 14. Rfd1 {[%clk 0:02:39]}  Qc7 {[%clk 0:02:29]} 15. Rac1 {[%clk 0:02:39]}  Be6 {[%clk 0:02:26]} 16. Be3 {[%clk 0:02:36]}  b6 {[%clk 0:02:15]} 17. c4 {[%clk 0:02:31]}  Rac8 {[%clk 0:02:10]} 18. Qb2 {[%clk 0:02:06]}  Nb4 {[%clk 0:01:31]} 19. c5 {[%clk 0:02:01]}  b5 {[%clk 0:01:24]} 20. c6 {[%clk 0:01:57]}  Bc4 {[%clk 0:01:16]} 21. Nc5 {[%clk 0:01:48]}  Qa5 {[%clk 0:00:36]} 22. Qxe5 {[%clk 0:01:39]}  Bf6 {[%clk 0:00:34]} 23. Qd6 {[%clk 0:01:37]}  Rfe8 {[%clk 0:00:26]} 24. Nd7 {[%clk 0:01:33]}  Bb2 {[%clk 0:00:23]} 25. Rb1 {[%clk 0:01:33]}  Ba3 {[%clk 0:00:17]} 26. Bd2 {[%clk 0:01:32]}  Bxe2 {[%clk 0:00:08]} 27. Re1 {[%clk 0:01:31]}  Nd3 {[%clk 0:00:05]} 28. Bxa5 {[%clk 0:01:30]}  Bxd6 {[%clk 0:00:05]} 29. Rxe2 {[%clk 0:01:24]}  Rxe2 {[%clk 0:00:04]} 30. Bf1 {[%clk 0:01:25]}  Rb2 {[%clk 0:00:03]} 31. Rd1 {[%clk 0:01:03]}  Bb4 {[%clk 0:00:03]} 32. Bxd3 {[%clk 0:00:36]}  Bxa5 {[%clk 0:00:03]} 33. Ne5 {[%clk 0:00:37]}  g6 {[%clk 0:00:03]} 34. Be4 {[%clk 0:00:30]}  Bb6 {[%clk 0:00:03]} 35. Bd5 {[%clk 0:00:28]}  Rxf2 {[%clk 0:00:03]} 36. Kh1 {[%clk 0:00:27]}  Rf5 {[%clk 0:00:03]} 37. Nd7 {[%clk 0:00:22]}  Kg7 {[%clk 0:00:03]} 38. Be4 {[%clk 0:00:21]}  Rf2 {[%clk 0:00:03]} 39. Rc1 {[%clk 0:00:18]}  Re2 {[%clk 0:00:03]} 40. Bf3 {[%clk 0:00:18]}  Rxa2 {[%clk 0:00:03]} 41. Bg4 {[%clk 0:00:15]}  Rc7 {[%clk 0:00:03]} 42. Ne5 {[%clk 0:00:15]}  Bd4 {[%clk 0:00:03]} 43. Nf3 {[%clk 0:00:15]}  Bf6 {[%clk 0:00:02]} 44. Bd7 {[%clk 0:00:15]}  Ra4 {[%clk 0:00:03]} 45. Nd2 {[%clk 0:00:15]}  Rd4 {[%clk 0:00:03]} 46. Nb3 {[%clk 0:00:14]}  Rd3 {[%clk 0:00:03]} 47. Nc5 {[%clk 0:00:14]}  Rc3 {[%clk 0:00:04]} 48. Rxc3 {[%clk 0:00:13]}  Bxc3 {[%clk 0:00:05]} 49. Na6 {[%clk 0:00:14]}  Ba5 {[%clk 0:00:02]} 50. Kg2 {[%clk 0:00:10]}  f5 {[%clk 0:00:02]} 51. Kf3 {[%clk 0:00:10]}  Kf6 {[%clk 0:00:02]} 52. Nxc7 {[%clk 0:00:10]}  Bxc7 {[%clk 0:00:02]} 53. Ke3 {[%clk 0:00:11]}  Ke5 {[%clk 0:00:03]} 54. Kd3 {[%clk 0:00:10]}  a5 {[%clk 0:00:03]} 55. Be8 {[%clk 0:00:10]}  g5 {[%clk 0:00:02]} 56. Bf7 {[%clk 0:00:10]}  h6 {[%clk 0:00:02]} 57. Bg6 {[%clk 0:00:10]}  f4 {[%clk 0:00:02]} 58. g4 {[%clk 0:00:09]}  Kd6 {[%clk 0:00:03]} 59. Be4 {[%clk 0:00:09]}  Kc5 {[%clk 0:00:03]} 60. Bf3 {[%clk 0:00:09]}  a4 {[%clk 0:00:03]} 61. Ke4 {[%clk 0:00:10]}  a3 {[%clk 0:00:03]} 0-1


[Site "https://www.chess.com"]

[Event "Titled Tuesday Blitz November 22 Late 2022"]
[White "Kalogeris, Ioannis"]
[Black "Yeritsyan, Hayk"]
[WhiteFideId "4239563"]
[BlackFideId "13307320"]
[WhiteElo "2312"]
[BlackElo "2377"]
[Result "0-1"]
[Round "06"]
[TimeControl "180+1"]
[Date "2022.11.23"]
[WhiteClock "0:02:02"]
[BlackClock "0:01:55"]

1. e4 {[%clk 0:03:00]}  c6 {[%clk 0:03:00]} 2. d4 {[%clk 0:02:51]}  d5 {[%clk 0:02:59]} 3. e5 {[%clk 0:02:51]}  c5 {[%clk 0:02:59]} 4. dxc5 {[%clk 0:02:50]}  e6 {[%clk 0:03:00]} 5. Nf3 {[%clk 0:02:50]}  Bxc5 {[%clk 0:02:59]} 6. Bd3 {[%clk 0:02:51]}  Nc6 {[%clk 0:02:59]} 7. O-O {[%clk 0:02:51]}  Nge7 {[%clk 0:02:59]} 8. a3 {[%clk 0:02:51]}  Ng6 {[%clk 0:02:58]} 9. b4 {[%clk 0:02:51]}  Bb6 {[%clk 0:02:58]} 10. Re1 {[%clk 0:02:51]}  Nd4 {[%clk 0:02:45]} 11. Bb2 {[%clk 0:02:48]}  Nxf3+ {[%clk 0:02:45]} 12. Qxf3 {[%clk 0:02:49]}  O-O {[%clk 0:02:43]} 13. Nd2 {[%clk 0:02:43]}  Qh4 {[%clk 0:02:38]} 14. g3 {[%clk 0:02:42]}  Qg5 {[%clk 0:02:38]} 15. Qe2 {[%clk 0:02:31]}  Nf4 {[%clk 0:02:30]} 16. Qf3 {[%clk 0:02:31]}  Nh3+ {[%clk 0:02:18]} 17. Kg2 {[%clk 0:02:30]}  Nxf2 {[%clk 0:02:04]} 18. Re2 {[%clk 0:02:11]}  Nxd3 {[%clk 0:01:59]} 19. cxd3 {[%clk 0:02:09]}  Bd7 {[%clk 0:01:59]} 20. Rf1 {[%clk 0:02:05]}  Bb5 {[%clk 0:01:55]} 21. h4 {[%clk 0:02:02]}  Qg6 {[%clk 0:01:55]} 0-1


[Site "https://www.chess.com"]

[Event "Titled Tuesday Blitz November 22 Late 2022"]
[White "Kilic, Eray"]
[Black "Zhigalko, Sergei"]
[WhiteFideId "44517173"]
[BlackFideId "13502956"]
[WhiteElo "2328"]
[BlackElo "2662"]
[Result "1-0"]
[Round "06"]
[TimeControl "180+1"]
[Date "2022.11.22"]
[WhiteClock "0:00:07"]
[BlackClock "0:00:02"]

1. e4 {[%clk 0:03:00]}  c5 {[%clk 0:03:00]} 2. Nf3 {[%clk 0:03:01]}  Nc6 {[%clk 0:03:01]} 3. Bb5 {[%clk 0:03:02]}  Nf6 {[%clk 0:03:01]} 4. d3 {[%clk 0:02:56]}  Qa5+ {[%clk 0:03:01]} 5. Nc3 {[%clk 0:02:56]}  Nd4 {[%clk 0:03:01]} 6. Bc4 {[%clk 0:02:56]}  b5 {[%clk 0:03:02]} 7. Bb3 {[%clk 0:02:54]}  Nxb3 {[%clk 0:03:02]} 8. cxb3 {[%clk 0:02:54]}  d6 {[%clk 0:03:03]} 9. O-O {[%clk 0:02:55]}  e6 {[%clk 0:03:04]} 10. Re1 {[%clk 0:02:52]}  Bb7 {[%clk 0:03:03]} 11. Bf4 {[%clk 0:02:47]}  Be7 {[%clk 0:03:02]} 12. e5 {[%clk 0:02:46]}  dxe5 {[%clk 0:03:03]} 13. Nxe5 {[%clk 0:02:47]}  O-O {[%clk 0:02:56]} 14. Qe2 {[%clk 0:02:45]}  Nd5 {[%clk 0:02:40]} 15. Bd2 {[%clk 0:02:43]}  Nxc3 {[%clk 0:02:40]} 16. bxc3 {[%clk 0:02:42]}  Qc7 {[%clk 0:02:30]} 17. Bf4 {[%clk 0:02:37]}  Bd6 {[%clk 0:02:29]} 18. Bg3 {[%clk 0:02:37]}  Rad8 {[%clk 0:02:26]} 19. Rad1 {[%clk 0:02:35]}  Rfe8 {[%clk 0:02:22]} 20. c4 {[%clk 0:02:35]}  a6 {[%clk 0:02:20]} 21. d4 {[%clk 0:02:15]}  cxd4 {[%clk 0:02:18]} 22. Rxd4 {[%clk 0:02:16]}  f6 {[%clk 0:01:46]} 23. Ng4 {[%clk 0:01:20]}  Bxg3 {[%clk 0:01:34]} 24. Rxd8 {[%clk 0:01:20]}  Bxh2+ {[%clk 0:01:33]} 25. Nxh2 {[%clk 0:01:20]}  Qxd8 {[%clk 0:01:34]} 26. cxb5 {[%clk 0:01:16]}  Qd5 {[%clk 0:01:34]} 27. Nf3 {[%clk 0:01:16]}  axb5 {[%clk 0:01:29]} 28. Rd1 {[%clk 0:01:15]}  Qc6 {[%clk 0:01:28]} 29. Qd2 {[%clk 0:01:09]}  e5 {[%clk 0:01:28]} 30. Qb4 {[%clk 0:01:09]}  Qc2 {[%clk 0:01:16]} 31. Rd7 {[%clk 0:01:01]}  Bxf3 {[%clk 0:00:21]} 32. gxf3 {[%clk 0:01:02]}  Qc6 {[%clk 0:00:19]} 33. Qg4 {[%clk 0:00:58]}  Qc1+ {[%clk 0:00:14]} 34. Kg2 {[%clk 0:00:56]}  Qh6 {[%clk 0:00:14]} 35. Rb7 {[%clk 0:00:54]}  Kh8 {[%clk 0:00:04]} 36. Rxb5 {[%clk 0:00:53]}  Qd2 {[%clk 0:00:03]} 37. Rb7 {[%clk 0:00:52]}  Rg8 {[%clk 0:00:03]} 38. a4 {[%clk 0:00:51]}  Qd5 {[%clk 0:00:02]} 39. Qd7 {[%clk 0:00:50]}  Qc5 {[%clk 0:00:01]} 40. b4 {[%clk 0:00:48]}  Qc4 {[%clk 0:00:02]} 41. a5 {[%clk 0:00:48]}  e4 {[%clk 0:00:02]} 42. Qg4 {[%clk 0:00:42]}  exf3+ {[%clk 0:00:02]} 43. Qxf3 {[%clk 0:00:43]}  h6 {[%clk 0:00:02]} 44. b5 {[%clk 0:00:42]}  Rd8 {[%clk 0:00:01]} 45. a6 {[%clk 0:00:33]}  Rd5 {[%clk 0:00:02]} 46. a7 {[%clk 0:00:17]}  Rg5+ {[%clk 0:00:02]} 47. Qg3 {[%clk 0:00:06]}  Qe4+ {[%clk 0:00:02]} 48. Kh2 {[%clk 0:00:06]}  Qxb7 {[%clk 0:00:02]} 49. Qb8+ {[%clk 0:00:07]}  Qxb8+ {[%clk 0:00:01]} 50. axb8=Q+ {[%clk 0:00:07]}  Kh7 {[%clk 0:00:02]} 51. f4 {[%clk 0:00:07]}  Rxb5 {[%clk 0:00:02]} 52. Qxb5 {[%clk 0:00:07]} 1-0


[Site "https://www.chess.com"]

[Event "Titled Tuesday Blitz November 22 Late 2022"]
[White "Koellner, Ruben Gideon"]
[Black "Djordjevic, Vuk"]
[WhiteFideId "12993093"]
[BlackFideId "902098"]
[WhiteElo "2607"]
[BlackElo "2783"]
[Result "0-1"]
[Round "06"]
[TimeControl "180+1"]
[Date "2022.11.23"]
[WhiteClock "0:00:02"]
[BlackClock "0:00:47"]

1. d4 {[%clk 0:03:00]}  Nf6 {[%clk 0:02:59]} 2. Bg5 {[%clk 0:02:42]}  d5 {[%clk 0:02:58]} 3. e3 {[%clk 0:02:42]}  e6 {[%clk 0:02:55]} 4. Nd2 {[%clk 0:02:42]}  Nbd7 {[%clk 0:02:51]} 5. f4 {[%clk 0:02:41]}  c5 {[%clk 0:02:51]} 6. c3 {[%clk 0:02:29]}  h6 {[%clk 0:02:35]} 7. Bxf6 {[%clk 0:02:28]}  gxf6 {[%clk 0:02:27]} 8. Qh5 {[%clk 0:02:24]}  f5 {[%clk 0:02:26]} 9. Ngf3 {[%clk 0:02:23]}  Nf6 {[%clk 0:02:26]} 10. Qh3 {[%clk 0:02:21]}  Qb6 {[%clk 0:02:14]} 11. Rb1 {[%clk 0:02:19]}  Bd7 {[%clk 0:02:12]} 12. Ne5 {[%clk 0:02:12]}  Ba4 {[%clk 0:02:05]} 13. b3 {[%clk 0:02:05]}  Bb5 {[%clk 0:02:05]} 14. c4 {[%clk 0:02:05]}  Bc6 {[%clk 0:02:00]} 15. Nxc6 {[%clk 0:01:54]}  bxc6 {[%clk 0:01:58]} 16. cxd5 {[%clk 0:01:27]}  cxd5 {[%clk 0:01:51]} 17. Nf3 {[%clk 0:01:06]}  Qa5+ {[%clk 0:01:43]} 18. b4 {[%clk 0:00:59]}  cxb4 {[%clk 0:01:37]} 19. Nd2 {[%clk 0:00:38]}  b3 {[%clk 0:01:29]} 20. Rxb3 {[%clk 0:00:14]}  Bb4 {[%clk 0:01:28]} 21. Rxb4 {[%clk 0:00:09]}  Qxb4 {[%clk 0:01:28]} 22. Bd3 {[%clk 0:00:10]}  Ke7 {[%clk 0:01:10]} 23. Ke2 {[%clk 0:00:07]}  Rab8 {[%clk 0:01:10]} 24. Rc1 {[%clk 0:00:06]}  Qd6 {[%clk 0:01:04]} 25. Rc2 {[%clk 0:00:04]}  h5 {[%clk 0:01:02]} 26. Qh4 {[%clk 0:00:04]}  Rhc8 {[%clk 0:01:02]} 27. Rxc8 {[%clk 0:00:02]}  Rxc8 {[%clk 0:01:01]} 28. Nf3 {[%clk 0:00:02]}  Qa3 {[%clk 0:00:58]} 29. Ne5 {[%clk 0:00:02]}  Qxa2+ {[%clk 0:00:53]} 30. Kf3 {[%clk 0:00:02]}  Qa4 {[%clk 0:00:47]} 0-1


[Site "https://www.chess.com"]

[Event "Titled Tuesday Blitz November 22 Late 2022"]
[White "Koutlas, Nikolaos"]
[Black "Guzman, Christopher"]
[WhiteFideId "25827138"]
[BlackFideId "6405096"]
[WhiteElo "2167"]
[BlackElo "2272"]
[Result "1-0"]
[Round "06"]
[TimeControl "180+1"]
[Date "2022.11.23"]
[WhiteClock "0:00:14"]
[BlackClock "0:00:51"]

1. c4 {[%clk 0:03:00]}  Nf6 {[%clk 0:02:59]} 2. Nc3 {[%clk 0:03:01]}  e6 {[%clk 0:02:59]} 3. e3 {[%clk 0:03:00]}  d5 {[%clk 0:02:59]} 4. Nf3 {[%clk 0:03:01]}  Be7 {[%clk 0:02:59]} 5. b3 {[%clk 0:03:02]}  O-O {[%clk 0:02:59]} 6. Bb2 {[%clk 0:03:02]}  a5 {[%clk 0:03:00]} 7. Qc2 {[%clk 0:02:59]}  Nc6 {[%clk 0:02:58]} 8. a3 {[%clk 0:02:58]}  d4 {[%clk 0:02:54]} 9. exd4 {[%clk 0:02:58]}  Nxd4 {[%clk 0:02:55]} 10. Nxd4 {[%clk 0:02:51]}  Qxd4 {[%clk 0:02:56]} 11. O-O-O {[%clk 0:02:47]}  Qxf2 {[%clk 0:02:53]} 12. Bd3 {[%clk 0:02:42]}  Qh4 {[%clk 0:02:49]} 13. g4 {[%clk 0:02:40]}  e5 {[%clk 0:02:47]} 14. g5 {[%clk 0:02:39]}  Qxg5 {[%clk 0:02:46]} 15. Rhg1 {[%clk 0:02:37]}  Qh6 {[%clk 0:02:47]} 16. Rdf1 {[%clk 0:02:29]}  Be6 {[%clk 0:02:46]} 17. Ne2 {[%clk 0:02:13]}  Nd7 {[%clk 0:02:40]} 18. Ng3 {[%clk 0:02:09]}  Rad8 {[%clk 0:02:19]} 19. Bf5 {[%clk 0:01:47]}  Bg5 {[%clk 0:01:58]} 20. Ne4 {[%clk 0:01:36]}  Bf4 {[%clk 0:01:54]} 21. Rxf4 {[%clk 0:01:30]}  exf4 {[%clk 0:01:53]} 22. Bxg7 {[%clk 0:00:51]}  Qxg7 {[%clk 0:01:39]} 23. Rxg7+ {[%clk 0:00:49]}  Kxg7 {[%clk 0:01:40]} 24. Ng5 {[%clk 0:00:41]}  h6 {[%clk 0:01:19]} 25. Bxe6 {[%clk 0:00:26]}  hxg5 {[%clk 0:01:17]} 26. Bxd7 {[%clk 0:00:26]}  Rxd7 {[%clk 0:01:17]} 27. Qf5 {[%clk 0:00:27]}  Rfd8 {[%clk 0:00:59]} 28. Qxg5+ {[%clk 0:00:27]}  Kf8 {[%clk 0:00:59]} 29. Qh6+ {[%clk 0:00:23]}  Ke7 {[%clk 0:00:56]} 30. Qxf4 {[%clk 0:00:24]}  b6 {[%clk 0:00:55]} 31. Qe5+ {[%clk 0:00:19]}  Kf8 {[%clk 0:00:54]} 32. Qf4 {[%clk 0:00:14]}  Rd6 {[%clk 0:00:53]} 33. h4 {[%clk 0:00:15]}  Ke7 {[%clk 0:00:52]} 34. h5 {[%clk 0:00:15]}  Rh8 {[%clk 0:00:51]} 35. Qe5+ {[%clk 0:00:14]} 1-0


[Site "https://www.chess.com"]

[Event "Titled Tuesday Blitz November 22 Late 2022"]
[White "Kovacevic, Radmila"]
[Black "Przybylski, Wojciech"]
[WhiteFideId "933171"]
[BlackFideId "1117599"]
[WhiteElo "2208"]
[BlackElo "2221"]
[Result "1-0"]
[Round "06"]
[TimeControl "180+1"]
[Date "2022.11.23"]
[WhiteClock "0:00:20"]
[BlackClock "0:00:05"]

1. e4 {[%clk 0:02:58]}  e5 {[%clk 0:02:59]} 2. d4 {[%clk 0:02:57]}  exd4 {[%clk 0:02:58]} 3. Qxd4 {[%clk 0:02:57]}  Nc6 {[%clk 0:02:57]} 4. Qe3 {[%clk 0:02:58]}  Nf6 {[%clk 0:02:57]} 5. Bd2 {[%clk 0:02:58]}  d6 {[%clk 0:02:53]} 6. Nc3 {[%clk 0:02:56]}  g6 {[%clk 0:02:52]} 7. f4 {[%clk 0:02:50]}  Bg7 {[%clk 0:02:52]} 8. Bc4 {[%clk 0:02:38]}  O-O {[%clk 0:02:50]} 9. O-O-O {[%clk 0:02:38]}  Ng4 {[%clk 0:02:46]} 10. Qg3 {[%clk 0:02:35]}  Bd4 {[%clk 0:02:41]} 11. Nh3 {[%clk 0:02:07]}  Be6 {[%clk 0:02:34]} 12. Bxe6 {[%clk 0:02:06]}  fxe6 {[%clk 0:02:34]} 13. Qxg4 {[%clk 0:02:06]}  Qf6 {[%clk 0:02:33]} 14. Rhf1 {[%clk 0:02:02]}  Rae8 {[%clk 0:02:28]} 15. Rf3 {[%clk 0:01:37]}  b5 {[%clk 0:02:14]} 16. a3 {[%clk 0:01:25]}  a5 {[%clk 0:02:13]} 17. Ng5 {[%clk 0:01:21]}  b4 {[%clk 0:02:06]} 18. Qh3 {[%clk 0:01:10]}  h5 {[%clk 0:01:52]} 19. e5 {[%clk 0:01:07]}  dxe5 {[%clk 0:01:48]} 20. Nce4 {[%clk 0:01:01]}  Qf5 {[%clk 0:01:47]} 21. g4 {[%clk 0:00:55]}  Qxg4 {[%clk 0:01:44]} 22. Qf1 {[%clk 0:00:54]}  bxa3 {[%clk 0:01:36]} 23. bxa3 {[%clk 0:00:53]}  Rb8 {[%clk 0:01:23]} 24. c3 {[%clk 0:00:53]}  Qf5 {[%clk 0:01:15]} 25. cxd4 {[%clk 0:00:51]}  Nxd4 {[%clk 0:01:15]} 26. Rc3 {[%clk 0:00:45]}  exf4 {[%clk 0:01:13]} 27. Qc4 {[%clk 0:00:42]}  c5 {[%clk 0:01:06]} 28. Be1 {[%clk 0:00:33]}  Rfc8 {[%clk 0:00:56]} 29. Bf2 {[%clk 0:00:31]}  Qe5 {[%clk 0:00:26]} 30. Kd2 {[%clk 0:00:23]}  Rb2+ {[%clk 0:00:24]} 31. Ke1 {[%clk 0:00:23]}  Re8 {[%clk 0:00:08]} 32. Bxd4 {[%clk 0:00:21]}  cxd4 {[%clk 0:00:07]} 33. Qxd4 {[%clk 0:00:21]}  Qxd4 {[%clk 0:00:07]} 34. Rxd4 {[%clk 0:00:22]}  Rxh2 {[%clk 0:00:05]} 35. Nf6+ {[%clk 0:00:22]}  Kf8 {[%clk 0:00:05]} 36. Ngh7+ {[%clk 0:00:20]}  Kf7 {[%clk 0:00:05]} 37. Rc7+ {[%clk 0:00:20]}  Re7 {[%clk 0:00:05]} 38. Rxe7+ {[%clk 0:00:19]}  Kxe7 {[%clk 0:00:05]} 39. Rd7# {[%clk 0:00:20]} 1-0


[Site "https://www.chess.com"]

[Event "Titled Tuesday Blitz November 22 Late 2022"]
[White "Krzywda, Andrzej"]
[Black "Sabuk, Piotr"]
[WhiteFideId "1114565"]
[BlackFideId "1137565"]
[WhiteElo "2149"]
[BlackElo "2326"]
[Result "0-1"]
[Round "06"]
[TimeControl "180+1"]
[Date "2022.11.23"]
[WhiteClock "0:00:01"]
[BlackClock "0:00:05"]

1. d4 {[%clk 0:03:00]}  Nf6 {[%clk 0:02:59]} 2. c4 {[%clk 0:03:01]}  e6 {[%clk 0:02:58]} 3. Nf3 {[%clk 0:03:01]}  b6 {[%clk 0:02:56]} 4. a3 {[%clk 0:02:55]}  d5 {[%clk 0:02:49]} 5. Nc3 {[%clk 0:02:51]}  Be7 {[%clk 0:02:47]} 6. cxd5 {[%clk 0:02:46]}  exd5 {[%clk 0:02:47]} 7. Bf4 {[%clk 0:02:45]}  O-O {[%clk 0:02:43]} 8. e3 {[%clk 0:02:45]}  c5 {[%clk 0:02:41]} 9. Rc1 {[%clk 0:02:38]}  Nc6 {[%clk 0:02:36]} 10. Bb5 {[%clk 0:02:36]}  Bb7 {[%clk 0:02:29]} 11. O-O {[%clk 0:02:33]}  c4 {[%clk 0:02:17]} 12. Ne5 {[%clk 0:02:30]}  Rc8 {[%clk 0:02:09]} 13. Nxc6 {[%clk 0:02:26]}  Bxc6 {[%clk 0:02:08]} 14. Ba6 {[%clk 0:02:27]}  Ra8 {[%clk 0:02:07]} 15. a4 {[%clk 0:02:04]}  Bb4 {[%clk 0:02:01]} 16. Bg5 {[%clk 0:02:02]}  h6 {[%clk 0:01:56]} 17. Bh4 {[%clk 0:02:02]}  Re8 {[%clk 0:01:54]} 18. b3 {[%clk 0:01:56]}  Ba3 {[%clk 0:01:34]} 19. Rb1 {[%clk 0:01:56]}  Bb4 {[%clk 0:01:32]} 20. Na2 {[%clk 0:01:44]}  Be7 {[%clk 0:01:25]} 21. bxc4 {[%clk 0:01:44]}  dxc4 {[%clk 0:01:23]} 22. Bxc4 {[%clk 0:01:44]}  Rc8 {[%clk 0:01:22]} 23. Qb3 {[%clk 0:01:40]}  Rf8 {[%clk 0:01:04]} 24. Rfc1 {[%clk 0:01:40]}  Qd7 {[%clk 0:01:01]} 25. Nc3 {[%clk 0:01:34]}  Qg4 {[%clk 0:00:56]} 26. Bg3 {[%clk 0:01:32]}  h5 {[%clk 0:00:56]} 27. d5 {[%clk 0:01:24]}  Bb7 {[%clk 0:00:56]} 28. d6 {[%clk 0:01:15]}  Bxd6 {[%clk 0:00:56]} 29. f3 {[%clk 0:01:06]}  Qxc4 {[%clk 0:00:50]} 30. Bxd6 {[%clk 0:00:59]}  Qxb3 {[%clk 0:00:50]} 31. Rxb3 {[%clk 0:01:00]}  Rfd8 {[%clk 0:00:49]} 32. Be5 {[%clk 0:00:57]}  Nd5 {[%clk 0:00:47]} 33. Kf2 {[%clk 0:00:42]}  Re8 {[%clk 0:00:47]} 34. Bd4 {[%clk 0:00:42]}  Rc4 {[%clk 0:00:33]} 35. Nxd5 {[%clk 0:00:36]}  Rxc1 {[%clk 0:00:29]} 36. Nf4 {[%clk 0:00:32]}  h4 {[%clk 0:00:25]} 37. Rb2 {[%clk 0:00:30]}  Bc6 {[%clk 0:00:23]} 38. a5 {[%clk 0:00:29]}  bxa5 {[%clk 0:00:23]} 39. Bxa7 {[%clk 0:00:28]}  a4 {[%clk 0:00:21]} 40. Bd4 {[%clk 0:00:28]}  a3 {[%clk 0:00:21]} 41. Ra2 {[%clk 0:00:27]}  Ra8 {[%clk 0:00:19]} 42. Ne2 {[%clk 0:00:16]}  Rc4 {[%clk 0:00:14]} 43. Nc3 {[%clk 0:00:17]}  Rb4 {[%clk 0:00:10]} 44. Ke2 {[%clk 0:00:15]}  Rb2+ {[%clk 0:00:09]} 45. Rxb2 {[%clk 0:00:12]}  axb2 {[%clk 0:00:10]} 46. Kd3 {[%clk 0:00:10]}  Ra1 {[%clk 0:00:07]} 47. Kc2 {[%clk 0:00:09]}  Rg1 {[%clk 0:00:07]} 48. Kxb2 {[%clk 0:00:02]}  Rxg2+ {[%clk 0:00:07]} 49. Kb3 {[%clk 0:00:02]}  Bxf3 {[%clk 0:00:08]} 50. Kc4 {[%clk 0:00:01]}  Rxh2 {[%clk 0:00:08]} 51. Na4 {[%clk 0:00:01]}  h3 {[%clk 0:00:05]} 0-1


[Site "https://www.chess.com"]

[Event "Titled Tuesday Blitz November 22 Late 2022"]
[White "Lashkin, Jegor"]
[Black "Jarmula, Lukasz"]
[WhiteFideId "13907808"]
[BlackFideId "1160664"]
[WhiteElo "2368"]
[BlackElo "2357"]
[Result "1-0"]
[Round "06"]
[TimeControl "180+1"]
[Date "2022.11.22"]
[WhiteClock "0:00:15"]
[BlackClock "0:00:01"]

1. e4 {[%clk 0:03:00]}  e6 {[%clk 0:02:14]} 2. d4 {[%clk 0:02:59]}  d5 {[%clk 0:02:13]} 3. Nc3 {[%clk 0:02:58]}  Bb4 {[%clk 0:02:13]} 4. e5 {[%clk 0:02:58]}  c5 {[%clk 0:02:13]} 5. a3 {[%clk 0:02:58]}  Bxc3+ {[%clk 0:02:13]} 6. bxc3 {[%clk 0:02:59]}  Ne7 {[%clk 0:02:13]} 7. Qg4 {[%clk 0:02:58]}  Nf5 {[%clk 0:02:13]} 8. Bd3 {[%clk 0:02:57]}  h5 {[%clk 0:02:14]} 9. Qf4 {[%clk 0:02:55]}  Qh4 {[%clk 0:02:14]} 10. Nf3 {[%clk 0:02:19]}  Qxf4 {[%clk 0:02:12]} 11. Bxf4 {[%clk 0:02:20]}  cxd4 {[%clk 0:02:12]} 12. cxd4 {[%clk 0:02:20]}  Nc6 {[%clk 0:02:11]} 13. c3 {[%clk 0:02:15]}  Bd7 {[%clk 0:02:11]} 14. Ke2 {[%clk 0:02:02]}  Na5 {[%clk 0:02:10]} 15. Rab1 {[%clk 0:02:01]}  b6 {[%clk 0:02:09]} 16. Nd2 {[%clk 0:02:00]}  Rc8 {[%clk 0:02:08]} 17. Rhc1 {[%clk 0:02:00]}  O-O {[%clk 0:02:06]} 18. h3 {[%clk 0:01:57]}  h4 {[%clk 0:01:54]} 19. g4 {[%clk 0:01:48]}  hxg3 {[%clk 0:01:53]} 20. fxg3 {[%clk 0:01:48]}  Rc7 {[%clk 0:01:53]} 21. g4 {[%clk 0:01:48]}  Ne7 {[%clk 0:01:50]} 22. Bg5 {[%clk 0:01:37]}  Ng6 {[%clk 0:01:04]} 23. h4 {[%clk 0:01:33]}  Rfc8 {[%clk 0:01:04]} 24. h5 {[%clk 0:01:34]}  Nf8 {[%clk 0:01:01]} 25. Ba6 {[%clk 0:01:34]}  Rb8 {[%clk 0:00:57]} 26. h6 {[%clk 0:01:33]}  Nh7 {[%clk 0:00:52]} 27. Be3 {[%clk 0:01:30]}  b5 {[%clk 0:00:50]} 28. a4 {[%clk 0:01:26]}  Nc4 {[%clk 0:00:36]} 29. Nxc4 {[%clk 0:01:12]}  Rxc4 {[%clk 0:00:35]} 30. Bxb5 {[%clk 0:01:10]}  Bxb5 {[%clk 0:00:34]} 31. axb5 {[%clk 0:01:04]}  Rbc8 {[%clk 0:00:31]} 32. Kd3 {[%clk 0:01:00]}  Ra4 {[%clk 0:00:28]} 33. Ra1 {[%clk 0:00:58]}  Rxa1 {[%clk 0:00:22]} 34. Rxa1 {[%clk 0:00:59]}  Rc7 {[%clk 0:00:22]} 35. Ra6 {[%clk 0:00:54]}  Nf8 {[%clk 0:00:21]} 36. hxg7 {[%clk 0:00:49]}  Kxg7 {[%clk 0:00:21]} 37. Rc6 {[%clk 0:00:42]}  Rb7 {[%clk 0:00:21]} 38. c4 {[%clk 0:00:41]}  dxc4+ {[%clk 0:00:20]} 39. Kxc4 {[%clk 0:00:42]}  Nd7 {[%clk 0:00:21]} 40. Bd2 {[%clk 0:00:36]}  Nb6+ {[%clk 0:00:21]} 41. Kc5 {[%clk 0:00:35]}  Na4+ {[%clk 0:00:19]} 42. Kb4 {[%clk 0:00:34]}  Nb6 {[%clk 0:00:19]} 43. Ka5 {[%clk 0:00:33]}  Nd5 {[%clk 0:00:18]} 44. Ka6 {[%clk 0:00:31]}  Rd7 {[%clk 0:00:17]} 45. Ka5 {[%clk 0:00:18]}  Ne7 {[%clk 0:00:13]} 46. Rd6 {[%clk 0:00:17]}  Rc7 {[%clk 0:00:13]} 47. Bb4 {[%clk 0:00:16]}  Nd5 {[%clk 0:00:13]} 48. Bc5 {[%clk 0:00:16]}  Ne3 {[%clk 0:00:08]} 49. Ra6 {[%clk 0:00:15]}  Nc4+ {[%clk 0:00:01]} 50. Kb4 {[%clk 0:00:15]} 1-0


[Site "https://www.chess.com"]